bitfinex/quotes_SOLUSD_20241125
["timestamp","ask_amount","ask_price","bid_price","bid_amount"]
[1732537601896,3.9765,251.48,251.41,23.776884]
[1732537602902,6.5126,251.52,251.4,23.776884]
[1732537603103,3.9759,251.51,251.4,23.776884]
[1732537604094,3.9759,251.51,251.4,26.958984]
[1732537604297,3.9759,251.51,251.4,39.28077353]
[1732537606401,3.9759,251.51,251.4,26.958984]
[1732537606889,3.9759,251.51,251.4,23.776884]
[1732537607501,13.9158,251.51,251.38,23.776884]
[1732537609083,13.9158,251.51,251.37,3.1824]
[1732537609084,13.9158,251.51,251.37,26.959384]
[1732537611909,13.9158,251.51,251.37,34.84048446]
[1732537614516,13.9158,251.51,251.39,23.776884]
[1732537617402,20.0,251.48,251.33,20.0]
[1732537617600,20.0,251.48,251.34,20.0]
[1732537618404,13.9181,251.47,251.34,20.0]
[1732537618919,6.5126,251.52,251.47,23.776884]
[1732537618920,2.51105928,251.52,251.47,23.776884]
[1732537619099,2.51105928,251.52,251.51,23.776884]
[1732537619305,3.9749,251.58,251.51,23.776884]
[1732537619498,3.9749,251.58,251.49,23.776884]
[1732537620111,3.9749,251.58,251.45,23.776884]
[1732537620298,9.9366,251.6,251.45,23.776884]
[1732537620499,9.9366,251.6,251.45,20.0]
[1732537620698,9.9366,251.6,251.43,23.776884]
[1732537620904,9.9366,251.6,251.42,23.776884]
[1732537621303,9.9366,251.6,251.45,20.0]
[1732537622021,9.9366,251.6,251.46,23.776884]
[1732537626319,9.9366,251.6,251.48,23.776884]
[1732537626520,3.9742,251.62,251.51,23.776884]
[1732537627519,3.9742,251.62,251.5,23.776884]
[1732537627835,13.9098,251.62,251.5,23.776884]
[1732537628008,13.9098,251.62,251.48,23.776884]
[1732537628507,13.9098,251.62,251.47,23.776884]
[1732537629226,13.9098,251.62,251.47,36.08525447]
[1732537629618,13.9098,251.62,251.47,39.26645447]
[1732537632334,13.9098,251.62,251.47,26.958084]
[1732537634427,13.9098,251.62,251.5,23.776884]
[1732537634624,3.9742,251.62,251.5,23.776884]
[1732537634822,3.9742,251.62,251.52,23.776884]
[1732537637822,3.9742,251.62,251.52,26.957484]
[1732537638026,3.9742,251.62,251.52,39.26585447]
[1732537638229,17.4893,251.63,251.55,36.08525447]
[1732537638448,19.8603,251.76,251.57,12.30837047]
[1732537638449,17.1137,251.69,251.57,12.30837047]
[1732537638627,17.1137,251.69,251.58,23.776884]
[1732537639235,17.1137,251.69,251.59,12.30837047]
[1732537639433,17.1137,251.69,251.58,23.776884]
[1732537640130,13.9064,251.68,251.58,23.776884]
[1732537642121,13.9064,251.68,251.56,23.776884]
[1732537645043,13.9064,251.68,251.55,23.776884]
[1732537647025,13.9064,251.68,251.54,26.957284]
[1732537647455,13.9064,251.68,251.54,34.82902816]
[1732537648552,13.9064,251.68,251.54,26.957284]
[1732537649126,13.9064,251.68,251.54,34.82902816]
[1732537649541,13.9064,251.68,251.54,26.957284]
[1732537652663,13.9064,251.68,251.54,34.82902816]
[1732537653329,13.9064,251.68,251.54,26.957284]
[1732537654831,13.9064,251.68,251.56,23.776884]
[1732537655036,3.9732,251.68,251.57,7.87174416]
[1732537655234,3.9732,251.68,251.58,23.776884]
[1732537655750,3.9732,251.68,251.59,7.87174416]
[1732537656053,3.9732,251.68,251.55,23.776884]
[1732537656253,3.9732,251.68,251.55,31.64862816]
[1732537656636,3.9732,251.68,251.57,23.776884]
[1732537657738,3.9732,251.68,251.56,26.956984]
[1732537659446,3.9732,251.68,251.57,3.969]
[1732537659758,3.9732,251.68,251.58,23.776884]
[1732537660648,3.9732,251.68,251.58,26.956684]
[1732537663161,23.9737,251.66,251.58,26.956684]
[1732537663340,3.9737,251.66,251.58,26.956684]
[1732537664039,3.9732,251.68,251.58,26.956684]
[1732537667173,3.9732,251.68,251.62,23.776884]
[1732537667563,3.9732,251.68,251.61,23.776884]
[1732537667870,3.9732,251.68,251.59,23.776884]
[1732537668860,9.9318,251.72,251.59,26.956584]
[1732537669670,3.9721,251.75,251.64,23.776884]
[1732537670053,16.29834875,251.83,251.7,7.87174416]
[1732537670255,13.8982,251.83,251.71,7.87174416]
[1732537670453,13.8982,251.83,251.72,23.776884]
[1732537671171,13.8982,251.83,251.71,23.776884]
[1732537671358,13.8982,251.83,251.7,23.776884]
[1732537671675,13.8982,251.83,251.7,31.64862816]
[1732537672673,13.8982,251.83,251.7,23.776884]
[1732537672972,20.0,251.8,251.68,23.776884]
[1732537673173,20.0,251.8,251.68,31.64862816]
[1732537674052,20.0,251.8,251.7,7.87174416]
[1732537674256,13.8982,251.83,251.71,23.776884]
[1732537675767,13.8982,251.83,251.73,23.776884]
[1732537676480,13.8982,251.83,251.71,23.776884]
[1732537677672,3.9709,251.83,251.72,23.776884]
[1732537678452,3.9709,251.83,251.71,23.776884]
[1732537678975,3.9709,251.83,251.73,23.776884]
[1732537679565,3.9709,251.83,251.73,26.954784]
[1732537679776,9.9255,251.88,251.73,23.776884]
[1732537679979,3.9703,251.87,251.77,23.776884]
[1732537680379,3.9703,251.87,251.76,23.776884]
[1732537680671,3.9703,251.87,251.73,3.1779]
[1732537680876,3.9703,251.87,251.75,23.776884]
[1732537681277,3.9703,251.87,251.75,7.87174416]
[1732537681460,9.9255,251.88,251.74,31.64862816]
[1732537681656,9.9255,251.88,251.74,34.82642816]
[1732537681976,9.9255,251.88,251.74,26.954684]
[1732537684476,3.9699,251.89,251.74,26.954684]
[1732537684477,3.9699,251.89,251.8,23.776884]
[1732537684984,3.9699,251.89,251.78,23.776884]
[1732537685481,3.9699,251.89,251.8,23.776884]
[1732537686076,13.8948,251.89,251.73,15.9134]
[1732537686266,13.8948,251.89,251.74,23.776884]
[1732537687684,13.8948,251.89,251.74,26.954684]
[1732537688378,13.8948,251.89,251.76,7.87174416]
[1732537688556,13.8948,251.89,251.77,23.776884]
[1732537689073,13.8948,251.89,251.76,23.776884]
[1732537690784,13.8948,251.89,251.76,26.954484]
[1732537692280,13.8948,251.89,251.76,23.776884]
[1732537692462,20.0,251.86,251.73,23.776884]
[1732537692653,20.0,251.86,251.71,26.955084]
[1732537693054,20.0,251.86,251.71,34.82682816]
[1732537693259,20.0,251.86,251.71,23.776884]
[1732537693782,20.0,251.86,251.71,31.64862816]
[1732537694167,20.0,251.86,251.72,7.87174416]
[1732537694367,6.6293,251.83,251.68,3.1785]
[1732537694560,6.6293,251.83,251.67,15.4433]
[1732537694561,20.0,251.8,251.66,13.56735119]
[1732537694759,20.0,251.8,251.66,5.69560703]
[1732537694981,20.0,251.8,251.65,3.1789]
[1732537695188,20.0,251.8,251.65,11.05064416]
[1732537696070,3.9715,251.79,251.66,26.955684]
[1732537697974,13.9004,251.79,251.65,23.776884]
[1732537699078,13.9004,251.79,251.65,26.955784]
[1732537700989,13.9004,251.79,251.65,23.776884]
[1732537701365,26.0316,251.75,251.62,23.776884]
[1732537701682,26.0316,251.75,251.61,20.0]
[1732537701861,26.0316,251.75,251.6,7.87174416]
[1732537702067,26.0316,251.75,251.62,7.87174416]
[1732537702986,3.9723,251.74,251.63,23.776884]
[1732537703788,3.9723,251.74,251.65,7.87174416]
[1732537703987,3.9723,251.74,251.65,23.776884]
[1732537704360,3.9723,251.74,251.62,3.1792]
[1732537704564,3.9723,251.74,251.63,26.956084]
[1732537709680,3.9723,251.74,251.65,23.776884]
[1732537710201,10.0037,251.75,251.65,23.776884]
[1732537710500,10.0037,251.75,251.67,23.776884]
[1732537710882,10.0037,251.75,251.65,23.776884]
[1732537711502,10.0037,251.75,251.67,23.776884]
[1732537714495,10.0037,251.75,251.67,28.776884]
[1732537718075,10.0037,251.75,251.67,31.955584]
[1732537719711,10.0037,251.75,251.67,28.776884]
[1732537720703,10.0037,251.75,251.67,31.955584]
[1732537721181,10.0037,251.75,251.67,28.776884]
[1732537721385,10.0037,251.75,251.67,31.955584]
[1732537722294,3.9721,251.75,251.67,31.955584]
[1732537722506,3.9718,251.77,251.67,31.955584]
[1732537723112,3.9718,251.77,251.67,28.776884]
[1732537723889,13.9014,251.77,251.67,5.0]
[1732537724595,9.67989413,251.76,251.63,23.776884]
[1732537724797,4.93391402,251.65,251.63,23.776884]
[1732537725009,9.67989413,251.64,251.63,23.776884]
[1732537725723,20.0,251.74,251.61,23.776884]
[1732537726420,20.0,251.74,251.57,11.05164416]
[1732537726595,13.9037,251.73,251.57,11.05164416]
[1732537727597,6.5787,251.72,251.58,26.956684]
[1732537727807,6.5787,251.72,251.56,26.38584416]
[1732537728544,6.5787,251.72,251.56,18.5141]
[1732537728813,24.7551,251.71,251.58,20.0]
[1732537729018,24.7551,251.71,251.59,23.776884]
[1732537729806,24.7551,251.71,251.56,23.18]
[1732537730117,24.7551,251.71,251.57,23.776884]
[1732537730320,44.6192,251.71,251.51,30.40192876]
[1732537730501,20.0,251.68,251.51,3.1807]
[1732537730811,20.0,251.68,251.51,11.05244416]
[1732537731019,20.0,251.64,251.51,11.05244416]
[1732537731817,20.0,251.64,251.52,23.776884]
[1732537732006,3.974,251.63,251.52,23.776884]
[1732537732621,3.974,251.63,251.52,26.957484]
[1732537734908,20.0,251.64,251.52,26.957484]
[1732537736067,20.0,251.64,251.54,23.776884]
[1732537736230,3.9729,251.7,251.56,23.776884]
[1732537736435,13.9053,251.7,251.57,7.87174416]
[1732537736725,13.9053,251.7,251.56,23.776884]
[1732537737428,20.0,251.67,251.54,23.776884]
[1732537738807,3.9736,251.66,251.55,3.1802]
[1732537738998,3.9736,251.66,251.56,23.776884]
[1732537741410,3.9736,251.66,251.54,26.957284]
[1732537741615,3.9736,251.66,251.55,7.87174416]
[1732537742019,3.9736,251.66,251.56,23.776884]
[1732537743011,3.9736,251.66,251.56,26.956984]
[1732537743821,3.9736,251.66,251.56,23.776884]
[1732537744012,3.9736,251.66,251.52,3.1805]
[1732537744330,3.9736,251.66,251.51,23.776884]
[1732537745330,3.9739,251.64,251.51,23.776884]
[1732537746519,3.9744,251.61,251.51,23.776884]
[1732537748033,3.9739,251.64,251.51,23.776884]
[1732537748537,13.9087,251.64,251.51,23.776884]
[1732537749324,13.9087,251.64,251.49,23.776884]
[1732537749529,10.8503,251.63,251.49,23.776884]
[1732537750143,3.9742,251.62,251.49,26.957784]
[1732537750646,3.9742,251.62,251.45,3.1814]
[1732537750647,20.0,251.59,251.45,3.1814]
[1732537750839,20.0,251.55,251.41,24.91021029]
[1732537751066,10.8503,251.54,251.4,3.1821]
[1732537751916,3.9756,251.53,251.4,3.1821]
[1732537752218,3.9756,251.53,251.44,7.87174416]
[1732537752423,3.9754,251.55,251.47,7.87174416]
[1732537752634,3.975,251.57,251.48,23.776884]
[1732537753727,3.975,251.57,251.48,7.87174416]
[1732537754129,3.975,251.57,251.49,23.776884]
[1732537755955,10.3653,251.58,251.51,23.776884]
[1732537756656,10.3653,251.58,251.47,7.87174416]
[1732537757132,10.3653,251.58,251.48,23.776884]
[1732537757532,20.0,251.55,251.4,3.1821]
[1732537757847,13.9142,251.54,251.4,3.1821]
[1732537759748,3.9755,251.54,251.42,23.776884]
[1732537761126,3.9755,251.54,251.45,23.776884]
[1732537761339,3.9755,251.54,251.46,7.87174416]
[1732537761649,3.9755,251.54,251.47,23.776884]
[1732537762358,3.9755,251.54,251.45,23.776884]
[1732537763656,3.9755,251.54,251.43,31.64862816]
[1732537764640,9.9381,251.56,251.43,31.64862816]
[1732537764843,9.9381,251.56,251.43,23.776884]
[1732537765053,20.0,251.53,251.42,23.776884]
[1732537766251,3.9758,251.52,251.42,23.776884]
[1732537766448,3.9758,251.52,251.42,31.64862816]
[1732537767047,3.9758,251.52,251.44,23.776884]
[1732537767245,3.9758,251.52,251.44,7.87174416]
[1732537768063,9.9381,251.56,251.44,7.87174416]
[1732537768751,9.9381,251.56,251.45,31.64862816]
[1732537768946,3.975,251.57,251.47,31.64862816]
[1732537769147,3.975,251.57,251.51,7.87174416]
[1732537769468,3.975,251.57,251.5,7.87174416]
[1732537770059,3.975,251.57,251.49,7.87174416]
[1732537770762,3.975,251.57,251.48,31.64862816]
[1732537770946,3.975,251.57,251.47,7.87174416]
[1732537771146,3.975,251.57,251.48,23.776884]
[1732537772950,3.975,251.57,251.48,26.957984]
[1732537773274,3.975,251.57,251.49,7.87174416]
[1732537774060,3.975,251.57,251.46,23.776884]
[1732537774269,3.975,251.57,251.46,31.64862816]
[1732537774865,3.975,251.57,251.46,34.82992816]
[1732537775068,3.975,251.57,251.48,7.87174416]
[1732537782078,3.975,251.57,251.48,11.05284416]
[1732537783979,3.975,251.57,251.48,7.87174416]
[1732537787385,3.975,251.57,251.47,3.1812]
[1732537787595,3.975,251.57,251.44,20.0]
[1732537787880,3.975,251.57,251.45,23.776884]
[1732537788890,3.975,251.57,251.45,26.958284]
[1732537789195,3.975,251.57,251.48,7.87174416]
[1732537791481,3.975,251.57,251.5,7.87174416]
[1732537793086,3.975,251.57,251.48,11.45044416]
[1732537793290,3.975,251.57,251.49,23.776884]
[1732537793476,6.3905,251.58,251.49,23.776884]
[1732537793677,6.3905,251.58,251.5,7.87174416]
[1732537793878,10.3654,251.58,251.5,7.87174416]
[1732537794594,3.9745,251.6,251.54,7.87174416]
[1732537794967,10.8503,251.61,251.55,7.87174416]
[1732537795190,3.9743,251.62,251.55,7.87174416]
[1732537796270,3.974,251.63,251.55,7.87174416]
[1732537796465,3.974,251.63,251.54,23.776884]
[1732537797568,3.974,251.63,251.53,23.776884]
[1732537798690,3.974,251.63,251.53,31.64862816]
[1732537798989,3.974,251.63,251.53,23.776884]
[1732537800387,3.974,251.63,251.52,23.776884]
[1732537800570,3.974,251.63,251.48,11.45044416]
[1732537801375,3.974,251.63,251.48,7.87174416]
[1732537801593,20.0,251.6,251.48,7.87174416]
[1732537801775,20.0,251.6,251.49,23.776884]
[1732537802386,3.9747,251.59,251.49,23.776884]
[1732537803166,3.9747,251.59,251.48,23.776884]
[1732537803792,3.9747,251.59,251.48,26.957984]
[1732537803994,10.8503,251.58,251.48,23.776884]
[1732537804294,10.8503,251.58,251.44,23.1815]
[1732537804490,10.8503,251.58,251.44,20.0]
[1732537804895,26.6357,251.55,251.42,24.91021029]
[1732537805199,26.6357,251.55,251.39,24.91021029]
[1732537805372,26.6357,251.55,251.37,24.91021029]
[1732537805569,20.0,251.51,251.36,24.91021029]
[1732537805773,20.0,251.51,251.34,26.38604416]
[1732537806194,20.0,251.51,251.37,7.87174416]
[1732537806401,20.0,251.51,251.35,7.87174416]
[1732537806692,20.0,251.51,251.36,11.05434416]
[1732537806693,3.9761,251.5,251.36,11.05434416]
[1732537807595,3.9761,251.5,251.37,31.64862816]
[1732537807803,3.9761,251.5,251.37,34.83112816]
[1732537807978,3.9761,251.5,251.37,26.959384]
[1732537808299,3.9761,251.5,251.36,23.776884]
[1732537809291,33.9164,251.5,251.36,34.83122816]
[1732537809497,3.9761,251.5,251.39,23.776884]
[1732537810082,3.9761,251.5,251.37,31.64862816]
[1732537810484,3.9761,251.5,251.39,31.64862816]
[1732537810975,3.9761,251.5,251.41,31.64862816]
[1732537811176,3.9761,251.5,251.41,7.87174416]
[1732537811376,3.9761,251.5,251.39,31.64862816]
[1732537811677,3.9761,251.5,251.41,23.776884]
[1732537812273,3.9761,251.5,251.41,31.64862816]
[1732537812472,3.9761,251.5,251.41,34.83062816]
[1732537812986,3.9756,251.53,251.44,7.87174416]
[1732537813188,3.9756,251.53,251.45,7.87174416]
[1732537813991,3.9756,251.53,251.44,11.05334416]
[1732537814682,10.8503,251.54,251.46,7.87174416]
[1732537814888,10.8503,251.54,251.47,23.776884]
[1732537815083,17.2465,251.61,251.47,23.776884]
[1732537815289,3.9745,251.6,251.49,7.87174416]
[1732537815488,3.9745,251.6,251.51,7.87174416]
[1732537815996,3.9745,251.6,251.49,23.776884]
[1732537816206,3.9745,251.6,251.46,7.87174416]
[1732537816379,13.9109,251.6,251.47,23.776884]
[1732537816583,20.0,251.57,251.47,23.776884]
[1732537817791,3.9751,251.56,251.47,26.958084]
[1732537819897,3.9751,251.56,251.49,23.776884]
[1732537821182,3.9745,251.6,251.51,7.87174416]
[1732537823101,3.9745,251.6,251.5,7.87174416]
[1732537823411,3.9745,251.6,251.51,23.776884]
[1732537823700,3.9745,251.6,251.46,3.1814]
[1732537823907,3.9745,251.6,251.48,23.776884]
[1732537824102,13.9109,251.6,251.48,23.776884]
[1732537824310,13.9109,251.6,251.46,23.776884]
[1732537824491,20.0,251.57,251.45,23.776884]
[1732537825007,20.0,251.57,251.48,7.87174416]
[1732537825305,13.9109,251.6,251.49,7.87174416]
[1732537826508,3.9745,251.6,251.5,23.776884]
[1732537826881,3.9745,251.6,251.48,23.776884]
[1732537827807,13.9109,251.6,251.47,23.776884]
[1732537828000,20.0,251.57,251.46,23.776884]
[1732537828995,3.9751,251.56,251.46,26.958284]
[1732537829717,3.9751,251.56,251.48,23.776884]
[1732537830084,3.9751,251.56,251.46,26.958284]
[1732537832307,20.0,251.57,251.46,26.958284]
[1732537832900,20.0,251.57,251.47,7.87174416]
[1732537833213,20.0,251.57,251.49,7.87174416]
[1732537833512,20.0,251.57,251.5,23.776884]
[1732537834207,3.9751,251.56,251.5,23.776884]
[1732537835123,3.9751,251.56,251.46,23.776884]
[1732537835411,3.9751,251.56,251.46,31.64862816]
[1732537836106,13.9109,251.6,251.46,34.82992816]
[1732537836303,13.9109,251.6,251.46,26.958184]
[1732537836510,13.9109,251.6,251.46,34.82992816]
[1732537839922,13.9109,251.6,251.48,23.776884]
[1732537840798,13.9109,251.6,251.47,23.776884]
[1732537841005,13.9109,251.6,251.46,23.776884]
[1732537842021,13.9109,251.6,251.48,23.776884]
[1732537843820,20.0,251.57,251.47,23.776884]
[1732537844026,20.0,251.57,251.45,23.776884]
[1732537844602,20.0,251.57,251.44,23.776884]
[1732537845714,3.9751,251.56,251.44,23.776884]
[1732537846810,20.0,251.53,251.43,23.776884]
[1732537848033,3.9758,251.52,251.43,23.776884]
[1732537848825,10.8503,251.51,251.4,23.776884]
[1732537849128,16.9494,251.51,251.4,23.776884]
[1732537849540,16.9494,251.51,251.36,3.1826]
[1732537849825,3.9761,251.5,251.36,11.05434416]
[1732537850017,20.0,251.47,251.36,7.87174416]
[1732537850617,20.0,251.47,251.36,11.05434416]
[1732537851009,20.0,251.47,251.34,3.1828]
[1732537851515,20.0,251.47,251.32,7.87174416]
[1732537851821,3.9767,251.46,251.32,11.05484416]
[1732537852401,13.9186,251.46,251.32,11.05484416]
[1732537853004,13.9186,251.46,251.33,23.776884]
[1732537853420,9.9419,251.46,251.33,26.959884]
[1732537854034,9.9419,251.46,251.34,7.87174416]
[1732537854205,9.9419,251.46,251.35,7.87174416]
[1732537854407,3.9766,251.47,251.36,23.776884]
[1732537854624,23.9766,251.47,251.36,23.776884]
[1732537855223,23.9766,251.47,251.35,23.776884]
[1732537855421,23.9766,251.47,251.34,23.776884]
[1732537855730,33.9181,251.47,251.34,23.776884]
[1732537855921,20.0,251.44,251.31,31.64862816]
[1732537856317,20.0,251.44,251.31,23.776884]
[1732537856815,20.0,251.4,251.23,24.91021029]
[1732537857026,20.0,251.4,251.23,11.05604416]
[1732537857528,3.9778,251.39,251.23,11.05604416]
[1732537858334,3.9778,251.39,251.24,23.776884]
[1732537858826,13.9225,251.39,251.24,26.960984]
[1732537861130,3.9785,251.35,251.2,3.1847]
[1732537861326,17.2946,251.34,251.2,23.1847]
[1732537861630,20.0,251.31,251.16,3.1851]
[1732537861936,20.0,251.31,251.14,3.1853]
[1732537862233,20.0,251.31,251.15,7.87174416]
[1732537862524,20.0,251.31,251.14,11.05704416]
[1732537862925,3.9793,251.3,251.14,11.05704416]
[1732537863126,3.9793,251.3,251.15,23.776884]
[1732537863549,3.9793,251.3,251.15,31.64862816]
[1732537863911,3.9793,251.3,251.16,7.87174416]
[1732537864221,3.9793,251.3,251.2,23.776884]
[1732537864621,3.9793,251.3,251.18,23.776884]
[1732537865024,3.9793,251.3,251.18,31.64862816]
[1732537865313,3.9793,251.3,251.18,23.776884]
[1732537865631,3.9793,251.3,251.18,3.1849]
[1732537865810,20.0,251.29,251.19,31.64862816]
[1732537866416,20.0,251.29,251.19,23.776884]
[1732537866621,3.9796,251.28,251.19,26.961584]
[1732537867710,3.9796,251.28,251.15,3.1853]
[1732537868019,3.9796,251.28,251.16,23.776884]
[1732537868425,20.0,251.26,251.16,23.776884]
[1732537869243,3.98,251.25,251.16,23.776884]
[1732537871026,3.98,251.25,251.16,26.961984]
[1732537872611,3.9788,251.33,251.22,23.776884]
[1732537874525,3.9788,251.33,251.22,26.961284]
[1732537875340,3.9788,251.33,251.22,23.776884]
[1732537875516,3.9788,251.33,251.21,23.776884]
[1732537877036,20.0,251.3,251.15,20.0]
[1732537877219,20.0,251.3,251.15,23.776884]
[1732537877536,20.0,251.3,251.17,23.776884]
[1732537878322,3.9794,251.29,251.19,23.776884]
[1732537879929,3.9794,251.29,251.19,11.05654416]
[1732537880133,3.9788,251.33,251.22,23.776884]
[1732537881145,3.9788,251.33,251.2,34.83322816]
[1732537881338,3.9788,251.33,251.2,26.961484]
[1732537881515,20.0,251.31,251.2,23.776884]
[1732537881718,20.0,251.3,251.17,11.05664416]
[1732537882032,20.0,251.3,251.18,23.776884]
[1732537882234,20.0,251.3,251.14,3.1854]
[1732537882741,20.0,251.25,251.12,11.05734416]
[1732537882949,20.0,251.25,251.12,3.1856]
[1732537883235,20.0,251.23,251.11,3.1858]
[1732537884121,20.0,251.23,251.12,23.776884]
[1732537884321,3.9805,251.22,251.12,26.962484]
[1732537884841,3.9805,251.22,251.12,34.83422816]
[1732537886437,6.2873,251.32,251.18,7.87174416]
[1732537886627,6.2873,251.32,251.2,7.87174416]
[1732537887535,3.9791,251.31,251.19,34.83332816]
[1732537887847,3.9791,251.31,251.19,26.961584]
[1732537890140,3.9791,251.31,251.13,4.62505181]
[1732537890344,20.0,251.28,251.14,3.1854]
[1732537890645,20.0,251.28,251.15,7.87174416]
[1732537891018,20.0,251.28,251.14,11.05714416]
[1732537891239,10.8503,251.27,251.14,3.1854]
[1732537891438,10.8503,251.27,251.11,20.0]
[1732537891645,3.9799,251.26,251.12,11.05744416]
[1732537892442,3.9799,251.26,251.13,23.776884]
[1732537893021,3.9799,251.26,251.15,23.776884]
[1732537894240,3.9799,251.26,251.15,3.1852]
[1732537895138,3.9799,251.26,251.13,23.776884]
[1732537895320,3.9799,251.26,251.15,23.776884]
[1732537896340,3.9799,251.26,251.13,26.962484]
[1732537899449,3.9799,251.26,251.13,34.83422816]
[1732537900247,3.9799,251.26,251.15,23.776884]
[1732537901330,3.9799,251.26,251.13,26.962484]
[1732537902850,3.9799,251.26,251.15,26.962184]
[1732537903049,10.8503,251.27,251.16,7.87174416]
[1732537903229,14.8301,251.27,251.19,7.87174416]
[1732537903432,3.9791,251.31,251.21,7.87174416]
[1732537903948,3.9791,251.31,251.2,7.87174416]
[1732537904349,3.9791,251.31,251.19,31.64862816]
[1732537904525,3.9791,251.31,251.19,26.961684]
[1732537905551,3.9791,251.31,251.19,23.776884]
[1732537906434,13.9269,251.31,251.16,3.1852]
[1732537906629,20.0,251.28,251.16,3.1852]
[1732537907444,3.9797,251.27,251.16,3.1852]
[1732537908553,3.9797,251.27,251.15,26.962184]
[1732537909655,20.0,251.23,251.13,3.1854]
[1732537910457,3.9805,251.22,251.11,3.1858]
[1732537910952,3.9805,251.22,251.12,23.776884]
[1732537911449,3.9805,251.22,251.11,3.1858]
[1732537913748,3.9805,251.22,251.09,3.1861]
[1732537913945,3.9805,251.22,251.1,23.776884]
[1732537914846,3.9805,251.22,251.11,3.1858]
[1732537915838,3.9805,251.22,251.11,23.776884]
[1732537916836,3.9805,251.22,251.12,3.1857]
[1732537918358,6.3335,251.23,251.13,23.776884]
[1732537918562,10.8503,251.26,251.16,7.87174416]
[1732537918945,10.8503,251.26,251.17,23.776884]
[1732537919135,14.8302,251.26,251.17,23.776884]
[1732537919944,14.8302,251.26,251.12,19.02174416]
[1732537920264,14.8302,251.26,251.13,23.776884]
[1732537920564,14.8302,251.26,251.11,3.1858]
[1732537920861,14.8302,251.26,251.11,23.1858]
[1732537921159,14.8302,251.26,251.11,3.1858]
[1732537921672,24.78,251.26,251.11,3.1858]
[1732537921963,24.78,251.26,251.13,3.1856]
[1732537922261,14.8302,251.26,251.14,23.776884]
[1732537923057,14.8302,251.26,251.12,26.962584]
[1732537923759,14.8302,251.26,251.14,7.87174416]
[1732537923965,6.6366,251.29,251.19,7.87174416]
[1732537924151,6.6366,251.29,251.2,23.776884]
[1732537924862,10.616,251.29,251.18,7.87174416]
[1732537925163,10.616,251.29,251.19,3.1848]
[1732537925343,10.616,251.29,251.18,26.961784]
[1732537926271,10.616,251.29,251.18,23.776884]
[1732537926452,10.616,251.29,251.16,3.1851]
[1732537926653,10.616,251.29,251.13,7.87174416]
[1732537926962,20.5646,251.29,251.14,3.1853]
[1732537927163,20.5646,251.29,251.14,11.05704416]
[1732537927340,20.5646,251.29,251.14,20.0]
[1732537927655,10.616,251.29,251.16,7.87174416]
[1732537927847,10.616,251.29,251.17,7.87174416]
[1732537928165,6.6366,251.29,251.2,23.776884]
[1732537928868,10.8503,251.32,251.22,7.87174416]
[1732537929069,10.8503,251.32,251.23,23.776884]
[1732537929268,10.8503,251.32,251.25,23.776884]
[1732537929445,10.8503,251.32,251.24,3.1842]
[1732537929651,14.8293,251.32,251.21,23.776884]
[1732537930648,14.8293,251.32,251.2,26.961584]
[1732537935453,14.8293,251.32,251.18,16.408]
[1732537935658,14.8293,251.32,251.11,37.36531544]
[1732537935659,20.0,251.29,251.16,3.1852]
[1732537936780,6.4989,251.27,251.13,28.09561029]
[1732537937086,6.4989,251.27,251.13,3.1854]
[1732537937652,6.4989,251.27,251.11,12.33407955]
[1732537937957,3.9799,251.26,251.12,3.1857]
[1732537938163,3.9799,251.26,251.14,20.0]
[1732537938948,3.9799,251.26,251.15,3.1853]